bitfinex-derivatives/quotes_SOLF0:USTF0_20250914
["timestamp","ask_amount","ask_price","bid_price","bid_amount"]
[1757845065320,7.48,247.14,246.97,6.44]
[1757845065523,2.88068771,247.13,246.97,6.44]
[1757845065822,2.88068771,247.12,246.97,6.44]
[1757845066122,2.88068771,247.11,246.97,6.44]
[1757845066319,2.88068771,247.1,246.97,6.44]
[1757845066624,2.88068771,247.09,246.97,6.44]
[1757845066926,1.8984447,247.12,246.97,6.44]
[1757845067118,2.87909392,247.11,246.97,6.44]
[1757845067318,2.87909392,247.1,246.97,6.44]
[1757845067517,2.87909392,247.09,246.97,6.44]
[1757845067818,1.8984447,247.12,246.97,6.44]
[1757845068014,2.8788453,247.11,246.97,6.44]
[1757845068219,2.8788453,247.1,246.97,6.44]
[1757845068419,2.8788453,247.09,246.97,6.44]
[1757845068625,1.8984447,247.12,246.97,6.44]
[1757845068821,2.87837368,247.11,246.97,6.44]
[1757845069016,17.92,247.14,246.98,6.44]
[1757845069224,4.77561642,247.13,246.98,6.44]
[1757845069421,2.8787396,247.12,246.98,6.44]
[1757845069622,2.8787396,247.11,246.98,6.44]
[1757845069825,1.89687682,247.13,246.98,6.44]
[1757845070023,2.87859149,247.12,246.98,6.44]
[1757845070222,27.6,247.14,246.98,6.44]
[1757845070422,2.87864321,247.13,246.98,6.44]
[1757845070620,2.87864321,247.12,246.98,6.44]
[1757845070921,27.6,247.14,246.98,6.44]
[1757845071121,2.87821825,247.13,246.98,6.44]
[1757845071319,27.6,247.14,246.98,6.44]
[1757845071320,2.87821825,247.12,246.98,6.44]
[1757845071524,27.6,247.14,246.98,6.44]
[1757845071826,2.87765074,247.13,246.98,6.44]
[1757845072025,2.87765074,247.12,246.98,6.44]
[1757845072223,27.6,247.14,246.98,6.44]
[1757845072424,2.87718796,247.13,246.98,6.44]
[1757845072624,2.87718796,247.12,246.98,6.44]
[1757845072825,46.88,247.14,246.98,6.44]
[1757845073028,2.87718796,247.13,246.98,6.44]
[1757845073327,2.87718796,247.12,246.98,6.44]
[1757845073527,46.88,247.14,246.98,6.44]
[1757845073828,2.87710844,247.13,247.0,6.44]
[1757845074021,1.89364156,247.18,247.0,6.44]
[1757845074221,2.87741737,247.17,247.0,6.44]
[1757845074425,2.87741737,247.16,247.0,6.44]
[1757845074725,2.87741737,247.15,247.0,6.44]
[1757845074928,2.87741737,247.14,247.0,6.44]
[1757845075125,2.87741737,247.13,247.0,6.44]
[1757845075325,1.89364156,247.18,247.0,6.44]
[1757845075626,2.87757661,247.17,247.0,6.44]
[1757845075826,2.87757661,247.16,247.0,6.44]
[1757845076029,2.87757661,247.15,247.0,6.44]
[1757845076230,2.87757661,247.14,247.0,6.44]
[1757845076530,2.87757661,247.13,247.0,6.44]
[1757845076823,2.87757661,247.12,247.0,6.44]
[1757845077029,2.87757661,247.11,247.0,6.44]
[1757845077224,5.48,247.19,247.0,6.44]
[1757845077432,4.7727539,247.18,247.0,6.44]
[1757845077628,2.87809456,247.17,247.0,6.44]
[1757845077928,2.87809456,247.16,247.0,6.44]
[1757845078125,2.87809456,247.15,247.0,6.44]
[1757845078430,2.87809456,247.14,247.0,6.44]
[1757845078630,2.87809456,247.13,247.0,6.44]
[1757845078829,2.87809456,247.12,247.0,6.44]
[1757845079030,2.87809456,247.11,247.0,6.44]
[1757845079234,1.8948355,247.19,247.0,6.44]
[1757845079431,2.87854989,247.18,247.0,6.44]
[1757845079631,2.87854989,247.17,247.0,6.44]
[1757845079828,2.87854989,247.16,247.0,6.44]
[1757845080029,2.87854989,247.15,247.0,6.44]
[1757845080229,2.87854989,247.14,247.0,6.44]
[1757845080527,2.87854989,247.13,247.0,6.44]
[1757845080726,2.87854989,247.12,247.0,6.44]
[1757845080927,1.89506989,247.2,247.0,6.44]
[1757845081132,2.87966308,247.19,247.0,6.44]
[1757845081326,2.87966308,247.18,247.0,6.44]
[1757845081528,2.87966308,247.17,247.0,6.44]
[1757845081725,4.49489507,247.22,247.0,6.44]
[1757845081726,2.87966308,247.16,247.0,6.44]
[1757845081927,2.87966308,247.15,247.0,6.44]
[1757845082128,2.87966308,247.14,247.0,6.44]
[1757845082328,2.87966308,247.13,247.0,6.44]
[1757845082532,2.87966308,247.12,247.0,6.44]
[1757845082729,4.49489507,247.21,247.0,6.44]
[1757845082927,2.86829027,247.2,247.0,6.44]
[1757845083129,2.86829027,247.19,247.0,6.44]
[1757845083330,2.86829027,247.18,247.0,6.44]
[1757845083528,2.86829027,247.17,247.0,6.44]
[1757845083727,2.86829027,247.16,247.0,6.44]
[1757845084034,2.86829027,247.15,247.0,6.44]
[1757845084231,2.86829027,247.14,247.0,6.44]
[1757845084432,2.86829027,247.13,247.02,6.62]
[1757845084631,1.89666676,247.23,247.04,6.62]
[1757845084932,2.85703056,247.22,247.04,6.62]
[1757845085235,2.85703056,247.21,247.04,6.62]
[1757845085435,2.85703056,247.2,247.04,6.62]
[1757845085624,2.85703056,247.19,247.04,6.62]
[1757845085831,2.85703056,247.18,247.04,6.62]
[1757845086030,2.85703056,247.17,247.04,6.62]
[1757845086328,2.85703056,247.16,247.04,6.62]
[1757845086530,2.85703056,247.15,247.04,6.62]
[1757845086836,2.85703056,247.14,247.04,6.62]
[1757845087032,4.49489507,247.25,247.04,6.62]
[1757845087336,2.85749506,247.24,247.04,6.62]
[1757845087531,2.85749506,247.23,247.04,6.62]
[1757845087735,2.85749506,247.22,247.04,6.62]
[1757845087933,2.85749506,247.21,247.04,6.62]
[1757845088129,2.85749506,247.2,247.04,6.62]
[1757845088330,2.85749506,247.19,247.04,6.62]
[1757845088530,2.85749506,247.18,247.04,6.62]
[1757845088730,2.85749506,247.17,247.04,6.62]
[1757845088932,2.85749506,247.16,247.04,6.62]
[1757845089128,2.87,247.25,247.04,6.62]
[1757845089636,271.82,247.42,247.04,6.62]
[1757845089637,4.49489507,247.28,247.04,6.62]
[1757845089837,2.87,247.29,247.04,6.62]
[1757845090330,2.87,247.29,247.05,6.62]
[1757845090630,7.36489507,247.32,247.06,6.62]
[1757845090836,2.87,247.32,247.06,6.62]
[1757845091636,2.87,247.32,247.08,6.62]
[1757845091834,7.36489507,247.32,247.08,6.62]
[1757845092636,7.36489507,247.32,247.1,6.62]
[1757845093638,4.49489507,247.3,247.1,6.62]
[1757845094240,2.87,247.29,247.11,26.62]
[1757845094438,2.87,247.29,247.12,6.62]
[1757845094637,7.36489507,247.32,247.12,6.62]
[1757845095728,2.87,247.32,247.12,6.62]
[1757845096133,2.87,247.32,247.14,6.62]
[1757845097241,4.49489507,247.35,247.14,6.62]
[1757845097442,7.36489507,247.36,247.14,6.62]
[1757845097642,2.87,247.36,247.14,6.62]
[1757845097937,4.49489507,247.39,247.16,6.62]
[1757845098140,2.87,247.4,247.18,30.87]
[1757845098331,2.87,247.4,247.2,6.62]
[1757845099733,2.87,247.4,247.24,6.62]
[1757845099936,2.87,247.41,247.24,6.62]
[1757845100237,2.87,247.4,247.26,6.62]
[1757845100442,2.87,247.4,247.27,6.62]
[1757845103141,2.87,247.4,247.28,98.74]
[1757845103342,2.87,247.4,247.29,6.62]
[1757845104445,4.49489507,247.43,247.29,6.62]
[1757845104636,2.87,247.41,247.3,98.72]
[1757845104839,4.49489507,247.42,247.3,98.72]
[1757845105041,2.87,247.41,247.3,98.72]
[1757845105342,2.87,247.41,247.29,6.62]
[1757845105343,4.49489507,247.42,247.31,98.72]
[1757845105542,2.87,247.41,247.31,98.72]
[1757845105741,4.49489507,247.41,247.29,6.62]
[1757845105938,2.87,247.4,247.3,98.72]
[1757845106133,7.36489507,247.4,247.29,6.62]
[1757845106335,2.87,247.39,247.3,98.72]
[1757845106539,4.49489507,247.4,247.29,6.62]
[1757845106741,2.87,247.39,247.3,98.72]
[1757845107446,4.49489507,247.4,247.3,98.72]
[1757845107645,2.87,247.39,247.29,6.62]
[1757845107845,2.87,247.37,247.26,93.79143014]
[1757845108046,2.87,247.37,247.27,98.72]
[1757845108441,4.49489507,247.38,247.26,93.79143014]
[1757845108637,4.49489507,247.38,247.27,98.72]
[1757845108846,2.87,247.37,247.27,98.72]
[1757845109047,4.49489507,247.38,247.26,93.79143014]
[1757845109252,4.49489507,247.38,247.27,98.72]
[1757845109540,2.87,247.37,247.27,98.72]
[1757845109748,4.49489507,247.38,247.27,98.72]
[1757845110845,2.87,247.37,247.27,98.72]
[1757845111246,2.87,247.36,247.27,98.72]
[1757845111544,2.87,247.36,247.26,93.79143014]
[1757845111545,2.87,247.38,247.26,93.79143014]
[1757845111748,2.87,247.38,247.27,98.72]
[1757845111947,4.49489507,247.39,247.27,98.72]
[1757845112552,2.87,247.38,247.27,98.72]
[1757845112848,2.87,247.38,247.26,93.79143014]
[1757845113144,2.87,247.38,247.27,98.72]
[1757845113749,4.49489507,247.38,247.26,93.79143014]
[1757845113947,2.87,247.36,247.26,93.79143014]
[1757845114341,4.49489507,247.37,247.26,93.79143014]
[1757845114949,2.87,247.36,247.26,93.79143014]
[1757845115150,4.49489507,247.37,247.26,93.79143014]
[1757845115448,2.87,247.36,247.26,93.79143014]
[1757845115851,4.49489507,247.37,247.26,93.79143014]
[1757845116551,2.87,247.36,247.26,93.79143014]
[1757845116750,4.49489507,247.37,247.26,93.79143014]
[1757845117050,2.87,247.36,247.26,93.79143014]
[1757845117950,2.87,247.37,247.26,93.79143014]
[1757845118149,2.87,247.36,247.26,93.79143014]
[1757845118351,2.87,247.37,247.26,93.79143014]
[1757845118552,4.49489507,247.38,247.26,93.79143014]
[1757845118955,2.87,247.37,247.26,93.79143014]
[1757845119151,4.49489507,247.38,247.26,93.79143014]
[1757845119956,2.87,247.37,247.26,93.79143014]
[1757845120153,4.49489507,247.38,247.26,93.79143014]
[1757845120349,2.87,247.37,247.26,93.79143014]
[1757845120654,4.49489507,247.38,247.26,93.79143014]
[1757845121246,2.87,247.37,247.26,93.79143014]
[1757845121452,2.87,247.36,247.26,93.79143014]
[1757845121753,4.49489507,247.37,247.26,93.79143014]
[1757845122454,4.49489507,247.36,247.26,93.79143014]
[1757845122651,2.87,247.35,247.26,93.79143014]
[1757845122852,2.87,247.34,247.24,6.54]
[1757845123045,2.87,247.35,247.24,6.54]
[1757845123357,2.87,247.34,247.24,6.54]
[1757845124054,4.49489507,247.35,247.24,6.54]
[1757845124254,2.87,247.33,247.24,6.54]
[1757845124457,2.87,247.35,247.24,6.54]
[1757845124756,4.49489507,247.36,247.2,6.54]
[1757845124953,2.87,247.35,247.2,6.54]
[1757845126159,7.36489507,247.35,247.2,6.54]
[1757845126358,2.87,247.34,247.2,6.54]
[1757845126561,2.87,247.33,247.2,6.54]
[1757845126750,2.87,247.34,247.2,6.54]
[1757845126956,2.87,247.33,247.14,6.54]
[1757845127157,4.49489507,247.33,247.14,6.54]
[1757845128160,2.87,247.32,247.14,6.54]
[1757845128356,4.49489507,247.33,247.14,6.54]
[1757845128357,2.87,247.33,247.14,9.93274456]
[1757845128660,4.49489507,247.35,247.15,3.39274456]
[1757845128868,2.87,247.34,247.15,3.39274456]
[1757845129162,7.36489507,247.34,247.15,3.39274456]
[1757845129363,2.87,247.32,247.15,3.39274456]
[1757845129658,30.42,247.31,247.15,3.39274456]
[1757845129858,2.87,247.3,247.15,3.39274456]
[1757845130862,44.35,247.29,247.19,6.54]
[1757845131058,44.35,247.29,247.19,9.93274456]
[1757845131961,2.87,247.29,247.19,9.93274456]
[1757845132262,2.87,247.29,247.2,6.54]
[1757845132656,2.87,247.37,247.22,6.54]
[1757845132853,24.52,247.37,247.22,9.93274456]
[1757845133761,2.87,247.36,247.23,6.54]
[1757845134962,2.87,247.36,247.24,6.54]
[1757845136664,2.87,247.36,247.24,3.39274456]
[1757845136860,2.87,247.36,247.25,6.66]
[1757845137056,2.87,247.36,247.25,3.39274456]
[1757845137259,2.87,247.36,247.26,6.66]
[1757845137860,2.87,247.36,247.26,10.05274456]
[1757845138358,2.87,247.36,247.26,6.66]
[1757845140459,2.87,247.37,247.26,6.66]
[1757845140857,98.74,247.38,247.26,6.66]
[1757845141063,2.87,247.37,247.26,6.66]
[1757845141662,2.87,247.37,247.27,3.39274456]
[1757845142257,2.87,247.37,247.26,10.05274456]
[1757845142663,98.74,247.38,247.26,10.05274456]
[1757845142862,2.87,247.37,247.26,10.05274456]
[1757845143463,98.74,247.38,247.26,10.05274456]
[1757845143658,2.87,247.37,247.26,10.05274456]
[1757845143963,98.74,247.38,247.26,10.05274456]
[1757845144264,2.87,247.36,247.25,3.39274456]
[1757845144465,2.87,247.36,247.24,3.39274456]
[1757845144668,2.87,247.36,247.25,3.39274456]
[1757845144865,2.87,247.36,247.24,3.39274456]
[1757845145255,2.87,247.36,247.23,3.39274456]
[1757845145666,2.87,247.36,247.25,9.79274456]
[1757845145962,2.87,247.34,247.25,9.79274456]
[1757845146158,2.87,247.34,247.25,6.4]
[1757845146764,101.59,247.34,247.25,6.4]
[1757845147668,101.59,247.34,247.25,9.79274456]
[1757845147870,101.59,247.34,247.26,3.39274456]
[1757845148469,101.59,247.34,247.27,3.39274456]
[1757845148664,101.59,247.34,247.28,6.4]
[1757845149059,2.87,247.34,247.28,9.79274456]
[1757845149261,2.87,247.34,247.28,6.4]
[1757845150769,2.87,247.34,247.28,9.79274456]
[1757845151171,2.87,247.46,247.29,6.4]
[1757845151370,2.87,247.44,247.29,6.4]
[1757845151567,2.87,247.42,247.29,6.4]
[1757845151770,54.40194803,247.41,247.29,6.4]
[1757845151970,1.89194803,247.4,247.29,6.4]
[1757845152767,2.87,247.39,247.29,6.4]
[1757845152975,2.87,247.39,247.29,9.79274456]
[1757845153277,2.87,247.39,247.29,6.4]
[1757845153574,2.87,247.39,247.3,3.39274456]
[1757845154168,2.87,247.39,247.28,3.39274456]
[1757845155169,2.87,247.39,247.27,3.39274456]
[1757845155572,4.76194803,247.39,247.27,3.39274456]
[1757845155773,2.87,247.37,247.27,3.39274456]
[1757845155972,62.18,247.36,247.27,3.39274456]
[1757845156169,2.87,247.34,247.27,3.39274456]
[1757845157769,2.87,247.34,247.26,3.39274456]
[1757845158873,74.1,247.33,247.26,3.39274456]
[1757845159073,1.89194803,247.32,247.26,3.39274456]
[1757845160368,2.87,247.31,247.26,3.39274456]
[1757845160568,4.76194803,247.32,247.26,3.39274456]
[1757845163671,1.89194803,247.31,247.26,3.39274456]
[1757845163872,2.87,247.36,247.28,6.4]
[1757845164077,16.09,247.36,247.28,9.79274456]
[1757845164275,1.85775497,247.35,247.28,9.79274456]
[1757845166683,30.41,247.36,247.28,6.4]
[1757845168785,27.54,247.36,247.28,6.4]
[1757845168972,39.36,247.38,247.28,6.4]
[1757845169281,1.86012348,247.37,247.28,6.4]
[1757845170383,1.86012348,247.38,247.28,6.4]
[1757845171581,2.86,247.39,247.28,6.4]
[1757845171786,12.36,247.41,247.28,6.4]
[1757845172086,1.86206654,247.4,247.28,9.78528196]
[1757845172287,1.86206654,247.4,247.29,6.92]
[1757845173181,1.86206654,247.41,247.29,6.92]
[1757845173387,1.86206654,247.41,247.28,3.38528196]
[1757845173388,2.86,247.45,247.31,3.38528196]
[1757845173578,2.86,247.45,247.32,6.92]
[1757845174884,1.86206654,247.46,247.32,6.92]
[1757845175192,1.86206654,247.46,247.33,6.92]
[1757845177987,98.74,247.47,247.33,6.92]
[1757845178289,1.86253972,247.46,247.33,6.92]
[1757845181891,100.54253972,247.47,247.33,6.92]
[1757845182085,1.86253972,247.46,247.33,6.92]
[1757845182688,1.86253972,247.47,247.33,6.92]
[1757845185892,100.54253972,247.47,247.33,6.92]
[1757845186093,1.86253972,247.46,247.33,6.92]
[1757845186294,98.68,247.47,247.33,6.92]
[1757845186795,98.68,247.47,247.34,6.92]
[1757845187293,98.68,247.47,247.34,10.31955199]
[1757845187492,98.68,247.47,247.35,6.92]
[1757845187794,2.86,247.54,247.35,10.31955199]
[1757845187986,2.86,247.54,247.36,6.92]
[1757845188886,2.86,247.54,247.37,6.92]
[1757845189489,101.71489507,247.56,247.37,6.92]
[1757845190192,4.49489507,247.55,247.37,6.92]
[1757845190395,101.71489507,247.56,247.37,6.92]
[1757845190597,4.49489507,247.55,247.37,6.92]
[1757845191196,4.49489507,247.54,247.37,6.92]
[1757845191595,4.49489507,247.53,247.37,6.92]
[1757845192398,4.49489507,247.53,247.37,62.0]
[1757845192595,4.49489507,247.53,247.38,6.92]
[1757845192802,4.49489507,247.53,247.4,6.92]
[1757845193601,4.49489507,247.54,247.4,6.92]
[1757845194989,4.49489507,247.55,247.4,6.92]
[1757845198101,4.49489507,247.54,247.4,6.92]
[1757845198301,4.49489507,247.55,247.4,6.92]
[1757845199605,4.49489507,247.54,247.4,6.92]
[1757845199801,4.49489507,247.55,247.4,6.92]
[1757845200508,4.49489507,247.54,247.4,6.92]
[1757845200910,4.49489507,247.53,247.4,6.92]
[1757845202003,4.49489507,247.51,247.4,6.92]
[1757845203106,4.49489507,247.5,247.4,6.92]
[1757845203411,4.49489507,247.53,247.4,6.92]
[1757845204410,4.49489507,247.53,247.41,98.62]
[1757845204707,4.49489507,247.53,247.42,6.72]
[1757845205010,4.49489507,247.55,247.42,6.72]
[1757845205213,7.35489507,247.55,247.42,6.72]
[1757845205511,7.35489507,247.55,247.44,6.72]
[1757845205907,2.86,247.55,247.44,6.72]
[1757845207314,4.49489507,247.57,247.44,6.72]
[1757845207707,7.54,247.66,247.44,6.72]
[1757845207708,4.49489507,247.6,247.44,6.72]
[1757845207912,6.78983311,247.64,247.45,98.6]
[1757845207913,7.35489507,247.59,247.45,98.6]
[1757845208113,4.49489507,247.59,247.45,98.6]
[1757845208310,4.49489507,247.6,247.45,98.6]
[1757845208509,4.49489507,247.6,247.46,6.72]
[1757845208715,4.49489507,247.6,247.46,102.18526514]
[1757845209011,4.49489507,247.6,247.47,98.6]
[1757845209213,4.49489507,247.59,247.46,102.18526514]
[1757845209414,2.86,247.58,247.47,98.6]
[1757845209808,2.86,247.58,247.48,6.72]
[1757845210013,2.86,247.59,247.48,6.72]
[1757845210316,4.49489507,247.6,247.48,6.72]
[1757845210615,2.86,247.59,247.48,6.72]
[1757845213912,2.86,247.58,247.48,6.72]
[1757845214113,4.49489507,247.58,247.48,6.72]
[1757845214318,2.86,247.57,247.46,194.04526514]
[1757845214517,2.86,247.56,247.46,95.46526514]
[1757845214719,2.86,247.55,247.46,95.46526514]
[1757845214920,4.49489507,247.56,247.46,95.46526514]
[1757845215320,14.08,247.63,247.46,95.46526514]
[1757845215321,4.49489507,247.55,247.46,95.46526514]
[1757845216121,2.86,247.54,247.46,95.46526514]
[1757845216416,4.49489507,247.55,247.46,95.46526514]
[1757845216621,2.86,247.55,247.46,95.46526514]
[1757845216818,4.49489507,247.56,247.46,95.46526514]
[1757845217924,2.86,247.55,247.46,95.46526514]
[1757845218125,4.49489507,247.56,247.46,95.46526514]
[1757845218720,2.86,247.55,247.46,95.46526514]
[1757845219826,4.49489507,247.56,247.46,95.46526514]
[1757845220025,2.86,247.55,247.46,95.46526514]
[1757845220221,4.49489507,247.56,247.46,95.46526514]
[1757845220523,2.86,247.55,247.46,95.46526514]
[1757845220720,4.49489507,247.56,247.46,95.46526514]
[1757845221021,2.86,247.54,247.46,95.46526514]
[1757845221222,7.35489507,247.54,247.46,95.46526514]
[1757845222022,2.86,247.53,247.46,95.46526514]
[1757845224425,2.86,247.53,247.43,6.72]
[1757845224620,4.49489507,247.53,247.43,6.72]
[1757845224923,2.86,247.51,247.38,6.72]
[1757845225518,2.86,247.5,247.38,6.72]
[1757845225723,4.49489507,247.51,247.38,6.72]
[1757845226230,2.86,247.49,247.38,6.72]
[1757845226422,2.86,247.5,247.34,3.4012309]
[1757845226623,13.0,247.5,247.34,3.4012309]
[1757845226821,13.0,247.5,247.35,6.72]
[1757845227029,2.86,247.49,247.41,3.4012309]
[1757845235939,2.86,247.49,247.42,7.03]
[1757845236433,2.86,247.58,247.45,3.4012309]
[1757845236737,2.86,247.58,247.46,7.03]
[1757845236934,2.86,247.63,247.46,10.4312309]
[1757845237139,2.86,247.63,247.48,7.03]
[1757845238029,4.49489507,247.65,247.48,7.03]
[1757845238230,4.49489507,247.66,247.48,7.03]
[1757845238438,7.35489507,247.67,247.48,7.03]
[1757845240038,4.49489507,247.7,247.48,3.4012309]
[1757845240241,4.49489507,247.7,247.49,7.03]
[1757845241340,2.86,247.72,247.52,7.03]
[1757845241536,2.86,247.72,247.54,7.03]
[1757845242236,2.86,247.72,247.55,36.77]
[1757845242442,2.86,247.72,247.56,7.03]
[1757845243141,4.49489507,247.81,247.57,43.2]
[1757845243142,2.86,247.79,247.57,43.2]
[1757845243336,2.86,247.8,247.58,104.11]
[1757845243538,2.86,247.8,247.59,7.03]
[1757845243936,2.86,247.8,247.61,7.03]
[1757845244643,15.36,247.81,247.61,7.03]
[1757845245035,27.65960424,247.81,247.61,7.03]
[1757845246438,2.86,247.8,247.61,7.03]
[1757845247439,15.36,247.81,247.61,7.03]
[1757845247644,2.86,247.8,247.61,7.03]
[1757845248343,15.36,247.81,247.61,7.03]
[1757845248540,2.86,247.8,247.61,7.03]
[1757845248736,15.36,247.81,247.61,7.03]
[1757845248737,27.65889079,247.81,247.61,7.03]
[1757845249445,46.71889079,247.81,247.61,7.03]
[1757845249644,12.29889079,247.81,247.61,7.03]
[1757845249844,50.9,247.81,247.61,7.03]
[1757845250144,2.86,247.8,247.61,7.03]
[1757845250444,50.9,247.81,247.61,7.03]
[1757845251550,2.86,247.8,247.61,7.03]
[1757845251745,50.9,247.81,247.61,7.03]
[1757845252248,2.86,247.8,247.61,7.03]
[1757845252749,63.05202,247.81,247.61,7.03]
[1757845254751,0.70272508,247.86,247.61,7.03]
[1757845254951,2.86,247.85,247.61,7.03]
[1757845255151,98.7,247.84,247.61,7.03]
[1757845255547,2.86,247.83,247.61,7.03]
[1757845255753,98.7,247.82,247.63,7.03]
[1757845255952,2.86,247.81,247.63,7.03]
[1757845256253,2.83,247.8,247.63,7.03]
[1757845256453,2.83,247.82,247.63,7.03]
[1757845256648,97.88,247.83,247.63,7.03]
[1757845257348,2.83,247.82,247.63,7.03]
[1757845257653,97.88,247.83,247.63,7.03]
[1757845257843,2.84,247.82,247.63,7.03]
[1757845258045,97.88,247.83,247.63,7.03]
[1757845258653,2.84,247.82,247.54,6.72]
[1757845258858,98.58262576,247.83,247.54,6.72]
[1757845259152,2.84,247.82,247.54,6.72]
[1757845259746,98.58262576,247.83,247.54,6.72]
[1757845260350,2.84,247.82,247.54,6.72]
[1757845260856,98.58262576,247.83,247.54,6.72]
[1757845261351,110.72262576,247.83,247.54,6.72]
[1757845261948,98.78,247.82,247.54,6.72]
[1757845262151,2.84,247.81,247.54,6.72]
[1757845262745,98.78,247.82,247.54,6.72]
[1757845262955,2.84,247.81,247.54,6.72]
[1757845263256,12.84262576,247.83,247.54,6.72]
[1757845263257,62.48,247.8,247.54,6.72]
[1757845263657,2.84,247.79,247.54,6.72]
[1757845263950,44.58,247.78,247.54,6.72]
[1757845264158,2.84,247.77,247.54,6.72]
[1757845266653,2.84,247.88,247.54,6.72]
[1757845266858,2.84,247.86,247.54,6.72]
[1757845267256,18.62,247.87,247.54,6.72]
[1757845267654,2.84,247.86,247.54,6.72]
[1757845268151,272.10264704,247.89,247.55,62.0]
[1757845268357,2.84,247.87,247.56,6.72]
[1757845268560,98.96,247.86,247.56,6.72]
[1757845268759,2.84,247.85,247.56,6.72]
[1757845268962,2.84,247.85,247.58,6.72]
[1757845270056,98.94,247.86,247.58,6.72]
[1757845271355,98.94,247.86,247.61,6.72]
[1757845271555,98.94,247.86,247.63,6.72]
[1757845272260,2.84,247.85,247.63,6.72]
[1757845272557,98.94,247.86,247.63,6.72]
[1757845272753,2.84,247.85,247.63,6.72]
[1757845273358,98.94,247.86,247.63,6.72]
[1757845273559,2.84,247.85,247.64,98.88]
[1757845273749,2.84,247.85,247.65,6.72]
[1757845273953,98.94,247.86,247.65,6.72]
[1757845274256,2.84,247.85,247.65,6.72]
[1757845274456,2.84,247.85,247.66,24.04]
[1757845274759,98.94,247.86,247.68,6.72]
[1757845275858,2.84,247.85,247.68,6.72]
[1757845276958,98.94,247.86,247.68,6.72]
[1757845277861,2.84,247.85,247.68,6.72]
[1757845278360,98.94,247.86,247.68,6.72]
[1757845278862,2.84,247.85,247.68,6.72]
[1757845279054,98.94,247.86,247.68,6.72]
[1757845279261,2.84,247.85,247.68,6.72]
[1757845280651,98.94,247.86,247.68,6.72]
[1757845281062,283.57107006,247.89,247.68,6.72]
[1757845281063,2.84,247.85,247.68,6.72]
[1757845281270,2.84,247.84,247.68,6.72]
[1757845281762,22.16,247.85,247.68,6.72]
[1757845281959,2.84,247.84,247.68,6.72]
[1757845282266,22.16,247.85,247.68,6.72]
[1757845283065,2.84,247.84,247.68,6.72]
[1757845283366,283.57107006,247.89,247.69,6.72]
[1757845283367,42.7,247.86,247.69,6.72]
[1757845283562,2.84,247.85,247.69,6.72]
[1757845283866,42.7,247.86,247.69,6.72]
[1757845284061,2.84,247.85,247.69,6.72]
[1757845284366,2.84,247.85,247.7,6.72]
[1757845285367,0.02555133,247.8,247.71,6.72]
[1757845288262,0.02555133,247.8,247.71,10.1212309]
[1757845289769,0.02555133,247.8,247.72,6.91]
[1757845292671,2.83,247.79,247.72,6.91]